[Event "Open Cappelle-la-Grande"]
[Date "2026.02.24"]
[White "Davoust, Nicolas"]
[Black "Raja Rithvik R"]
[WhiteElo "2223"]
[BlackElo "2535"]
[Round "5.5.9"]
[Result "0-1"]
[TimeControl "40/5400+30:1800+30"]

d4 {[%clk 1:29:15]} Nf6 {[%clk 1:30:32]} c4 {[%clk 1:29:36]} e6 {[%clk 1:30:57]}
Nf3 {[%clk 1:30:01]} d5 {[%clk 1:31:19]} g3 {[%clk 1:30:26]} dxc4 {[%clk
1:31:17]} Bg2 {[%clk 1:30:45]} a6 {[%clk 1:31:34]} a4 {[%clk 1:30:03]} Nc6
{[%clk 1:18:52]} O-O {[%clk 1:29:31]} Rb8 {[%clk 1:19:15]} Be3 {[%clk 1:23:24]}
Nd5 {[%clk 1:12:10]} Bg5 {[%clk 1:17:20]} f6 {[%clk 1:02:56]} e4 {[%clk
1:14:51]} fxg5 {[%clk 0:45:39]} exd5 {[%clk 1:14:27]} exd5 {[%clk 0:46:05]} Re1+
{[%clk 1:14:21]} Be7 {[%clk 0:46:31]} Nxg5 {[%clk 1:13:12]} O-O {[%clk 0:46:44]}
Nh3 {[%clk 0:47:26]} Bxh3 {[%clk 0:40:39]} Bxh3 {[%clk 0:47:27]} Bf6 {[%clk
0:41:07]} Nc3 {[%clk 0:46:02]} Bxd4 {[%clk 0:36:20]} Re2 {[%clk 0:45:11]} Kh8
{[%clk 0:31:52]} Bg2 {[%clk 0:44:39]} Rf5 {[%clk 0:25:03]} Qd2 {[%clk 0:33:14]}
Qd6 {[%clk 0:23:16]} Kh1 {[%clk 0:33:06]} Rbf8 {[%clk 0:21:04]} f4 {[%clk
0:33:16]} Qc5 {[%clk 0:19:19]} Rd1 {[%clk 0:31:53]} b5 {[%clk 0:17:55]} axb5
{[%clk 0:31:55]} axb5 {[%clk 0:18:23]} Bh3 {[%clk 0:31:39]} R5f6 {[%clk
0:17:47]} Bg2 {[%clk 0:29:44]} Rd6 {[%clk 0:16:58]} Rde1 {[%clk 0:27:52]} Rdd8
{[%clk 0:11:17]} Re6 {[%clk 0:27:23]} b4 {[%clk 0:10:32]} Ne2 {[%clk 0:15:44]}
Bf6 {[%clk 0:10:59]} Rd1 {[%clk 0:14:46]} c3 {[%clk 0:10:00]} Qc1 {[%clk
0:13:51]} Na5 {[%clk 0:08:28]} bxc3 {[%clk 0:13:31]} bxc3 {[%clk 0:08:56]} f5
{[%clk 0:10:38]} Qc4 {[%clk 0:07:03]} Qa3 {[%clk 0:01:59]} c2 {[%clk 0:05:07]}
Rf1 {[%clk 0:02:11]} Nb3 {[%clk 0:04:50]} h4 {[%clk 0:00:54]} Ra8 {[%clk
0:04:26]} Rxf6 {[%clk 0:00:56]} gxf6 {[%clk 0:04:54]} Qb2 {[%clk 0:00:42]} Qxe2
{[%clk 0:05:11]} Qxb3 {[%clk 0:01:04]} Qxf1+ {[%clk 0:05:32]}

[Variant "Standard"]
[Site "Europe Echecs"]

[Event "Open Cappelle-la-Grande"]
[Date "2026.02.24"]
[White "Shchekachev, Andrei"]
[Black "Luong Phuong Hanh"]
[WhiteElo "2474"]
[BlackElo "2236"]
[Round "5.5.10"]
[Result "1/2-1/2"]
[TimeControl "40/5400+30:1800+30"]

Nf3 {[%clk 1:30:51]} f5 {[%clk 1:30:55]} g3 {[%clk 1:24:36]} g6 {[%clk 1:31:15]}
Bg2 {[%clk 1:24:44]} Bg7 {[%clk 1:31:38]} d4 {[%clk 1:24:51]} Nf6 {[%clk
1:31:55]} c4 {[%clk 1:23:58]} O-O {[%clk 1:32:07]} Nc3 {[%clk 1:22:25]} d6
{[%clk 1:32:27]} O-O {[%clk 1:22:40]} c6 {[%clk 1:32:51]} Rb1 {[%clk 1:16:06]}
Qe8 {[%clk 1:29:15]} d5 {[%clk 1:10:18]} e5 {[%clk 1:28:41]} dxc6 {[%clk
0:42:10]} Nxc6 {[%clk 1:28:57]} Nb5 {[%clk 0:42:31]} Rb8 {[%clk 1:10:54]} Qxd6
{[%clk 0:38:24]} e4 {[%clk 0:54:57]} Nfd4 {[%clk 0:33:59]} Bd7 {[%clk 0:54:13]}
Nxc6 {[%clk 0:25:57]} bxc6 {[%clk 0:54:18]} Nc3 {[%clk 0:26:22]} Be6 {[%clk
0:39:19]} Bf4 {[%clk 0:21:43]} Rd8 {[%clk 0:37:39]} Qc5 {[%clk 0:21:06]} Qf7
{[%clk 0:36:23]} b3 {[%clk 0:16:52]} Ng4 {[%clk 0:28:49]} Qa5 {[%clk 0:16:48]}
Qf6 {[%clk 0:24:49]} Na4 {[%clk 0:15:21]} Qe7 {[%clk 0:22:10]} h3 {[%clk
0:11:26]} Nf6 {[%clk 0:22:29]} Bc7 {[%clk 0:10:54]} Rc8 {[%clk 0:22:01]} Be5
{[%clk 0:09:16]} Bf7 {[%clk 0:21:00]} Rbd1 {[%clk 0:07:24]} Rfd8 {[%clk
0:19:20]} e3 {[%clk 0:07:00]} Re8 {[%clk 0:12:52]} Bd6 {[%clk 0:05:51]} Qb7
{[%clk 0:13:16]} Nc5 {[%clk 0:05:14]} Qb6 {[%clk 0:12:37]} Qxb6 {[%clk 0:05:07]}
axb6 {[%clk 0:13:05]} Na4 {[%clk 0:05:29]} Nd7 {[%clk 0:13:20]} Bf4 {[%clk
0:05:18]} b5 {[%clk 0:11:45]} Rxd7 {[%clk 0:05:02]} bxa4 {[%clk 0:12:10]} Rfd1
{[%clk 0:04:55]} axb3 {[%clk 0:11:30]} axb3 {[%clk 0:05:22]} Bf6 {[%clk
0:11:09]} Rb7 {[%clk 0:04:18]} g5 {[%clk 0:10:37]} Bd6 {[%clk 0:03:47]} c5
{[%clk 0:09:00]} g4 {[%clk 0:02:08]} fxg4 {[%clk 0:08:08]} Bg3 {[%clk 0:02:02]}
gxh3 {[%clk 0:06:12]} Bxh3 {[%clk 0:02:24]} Rcd8 {[%clk 0:06:25]} Rd6 {[%clk
0:02:07]} Bg7 {[%clk 0:02:52]} Rxd8 {[%clk 0:01:44]} Rxd8 {[%clk 0:03:21]} Bf5
{[%clk 0:01:42]} h5 {[%clk 0:03:07]} Rb8 {[%clk 0:24:38]} Rxb8 {[%clk 0:33:32]}
Bxb8 {[%clk 0:25:04]} Bf8 {[%clk 0:33:53]} Bxe4 {[%clk 0:23:28]} Kg7 {[%clk
0:34:02]} Be5+ {[%clk 0:19:52]} Kh6 {[%clk 0:33:07]} f3 {[%clk 0:20:07]} Bg6
{[%clk 0:30:11]} Bc6 {[%clk 0:15:52]} Bc2 {[%clk 0:30:30]} Ba4 {[%clk 0:16:17]}
Kg6 {[%clk 0:30:43]} Kf2 {[%clk 0:15:02]} Kf5 {[%clk 0:30:45]} Bc3 {[%clk
0:14:05]} Ke6 {[%clk 0:26:58]} Kg2 {[%clk 0:12:01]} Bd6 {[%clk 0:27:18]} Be1
{[%clk 0:12:13]} Bd1 {[%clk 0:24:53]} Bc3 {[%clk 0:12:27]} h4 {[%clk 0:19:59]}

[Variant "Standard"]
[Site "Europe Echecs"]

[Event "Open Cappelle-la-Grande"]
[Date "2026.02.24"]
[White "Hansen, Soren Bech"]
[Black "Ruzhansky, Elias"]
[WhiteElo "2222"]
[BlackElo "2462"]
[Round "5.5.11"]
[Result "0-1"]
[TimeControl "40/5400+30:1800+30"]

e4 {[%clk 1:30:57]} c5 {[%clk 1:30:50]} Nf3 {[%clk 1:31:11]} d6 {[%clk 1:31:09]}
d4 {[%clk 1:31:04]} cxd4 {[%clk 1:31:27]} Nxd4 {[%clk 1:31:29]} Nf6 {[%clk
1:31:43]} Nc3 {[%clk 1:31:53]} Nc6 {[%clk 1:32:01]} Bg5 {[%clk 1:31:57]} Bd7
{[%clk 1:32:15]} Qd2 {[%clk 1:26:33]} a6 {[%clk 1:32:20]} f3 {[%clk 1:23:54]} e6
{[%clk 1:27:07]} O-O-O {[%clk 1:23:28]} Nxd4 {[%clk 1:27:16]} Qxd4 {[%clk
1:23:51]} Be7 {[%clk 1:27:29]} Kb1 {[%clk 1:22:38]} Qc7 {[%clk 1:27:15]} Qd2
{[%clk 1:20:27]} b5 {[%clk 1:26:33]} Ne2 {[%clk 1:16:30]} b4 {[%clk 1:22:01]}
Nd4 {[%clk 1:14:57]} O-O {[%clk 1:19:29]} h4 {[%clk 1:14:29]} Rfc8 {[%clk
1:17:04]} Rc1 {[%clk 0:58:50]} e5 {[%clk 1:02:36]} Ne2 {[%clk 0:53:07]} a5
{[%clk 0:59:02]} c4 {[%clk 0:52:04]} Be6 {[%clk 0:55:54]} Ng3 {[%clk 0:48:24]}
a4 {[%clk 0:55:33]} Be2 {[%clk 0:48:10]} Qa5 {[%clk 0:50:00]} Nf1 {[%clk
0:43:21]} h6 {[%clk 0:44:46]} Bxf6 {[%clk 0:43:19]} Bxf6 {[%clk 0:45:07]} Qd3
{[%clk 0:37:25]} Bd8 {[%clk 0:41:47]} Ne3 {[%clk 0:36:44]} Bb6 {[%clk 0:40:09]}
Nd5 {[%clk 0:36:59]} Kf8 {[%clk 0:38:24]} g4 {[%clk 0:30:19]} Qc5 {[%clk
0:22:42]} Qd2 {[%clk 0:20:45]} Rab8 {[%clk 0:16:20]} Rcd1 {[%clk 0:17:14]} a3
{[%clk 0:08:06]} b3 {[%clk 0:17:24]} Bxd5 {[%clk 0:08:27]} Qxd5 {[%clk 0:17:01]}
Ke7 {[%clk 0:05:53]} Qxc5 {[%clk 0:17:00]} Bxc5 {[%clk 0:05:59]} Kc2 {[%clk
0:14:46]} h5 {[%clk 0:04:50]} Kd3 {[%clk 0:13:24]} Rh8 {[%clk 0:04:17]} Rdf1
{[%clk 0:12:12]} Rh7 {[%clk 0:01:27]} gxh5 {[%clk 0:09:29]} Rxh5 {[%clk
0:01:48]} f4 {[%clk 0:09:48]} Rh6 {[%clk 0:01:02]} f5 {[%clk 0:05:24]} Rbh8
{[%clk 0:01:04]} h5 {[%clk 0:05:46]} g6 {[%clk 0:01:27]} fxg6 {[%clk 0:00:58]}
fxg6 {[%clk 0:01:51]} Rh4 {[%clk 0:00:40]} gxh5 {[%clk 0:02:05]} Bf3 {[%clk
0:20:50]} Rg6 {[%clk 0:18:59]} Rxh5 {[%clk 0:19:37]} Rf8 {[%clk 0:15:27]} Ke2
{[%clk 0:18:00]} Rg3 {[%clk 0:15:51]} Rh7+ {[%clk 0:16:51]} Kd8 {[%clk 0:16:01]}
Rb7 {[%clk 0:14:53]} Kc8 {[%clk 0:16:13]} Rh7 {[%clk 0:14:59]} Kb8 {[%clk
0:16:03]} Rd7 {[%clk 0:08:13]} Kc8 {[%clk 0:12:49]} Rh7 {[%clk 0:08:37]} Kb8
{[%clk 0:13:11]} Rd7 {[%clk 0:09:02]} Rh8 {[%clk 0:13:24]} Rh1 {[%clk 0:08:10]}
Rxh1 {[%clk 0:12:54]} Bxh1 {[%clk 0:08:36]} Rxb3 {[%clk 0:08:41]}

[Variant "Standard"]
[Site "Europe Echecs"]

[Event "Open Cappelle-la-Grande"]
[Date "2026.02.24"]
[White "Duboue, Peio"]
[Black "Laignel, Quentin"]
[WhiteElo "2461"]
[BlackElo "2227"]
[Round "5.5.12"]
[Result "1-0"]
[TimeControl "40/5400+30:1800+30"]

e4 {[%clk 1:28:41]} c6 {[%clk 1:30:06]} Nf3 {[%clk 1:29:07]} d5 {[%clk 1:30:22]}
d3 {[%clk 1:29:32]} dxe4 {[%clk 1:26:40]} dxe4 {[%clk 1:29:57]} Qxd1+ {[%clk
1:26:59]} Kxd1 {[%clk 1:30:24]} Nf6 {[%clk 1:27:16]} Nbd2 {[%clk 1:30:47]} Nbd7
{[%clk 1:26:54]} Ne1 {[%clk 1:30:37]} h5 {[%clk 1:22:36]} Nd3 {[%clk 1:28:54]}
h4 {[%clk 1:17:42]} f4 {[%clk 1:26:06]} Ng4 {[%clk 1:06:12]} Nf3 {[%clk
1:07:05]} e5 {[%clk 1:01:20]} Nfxe5 {[%clk 1:01:36]} Ngxe5 {[%clk 0:56:51]} fxe5
{[%clk 1:01:32]} Nc5 {[%clk 0:56:17]} Nxc5 {[%clk 0:55:38]} Bxc5 {[%clk
0:56:38]} Bf4 {[%clk 0:55:37]} Bg4+ {[%clk 0:51:15]} Be2 {[%clk 0:54:36]} O-O-O+
{[%clk 0:47:55]} Ke1 {[%clk 0:54:57]} Be6 {[%clk 0:48:12]} h3 {[%clk 0:51:50]}
Bd4 {[%clk 0:37:35]} c3 {[%clk 0:50:57]} Bb6 {[%clk 0:37:50]} Bg4 {[%clk
0:38:09]} Bxg4 {[%clk 0:31:17]} hxg4 {[%clk 0:38:37]} Rde8 {[%clk 0:31:09]} Kd2
{[%clk 0:33:31]} Kd7 {[%clk 0:20:12]} Raf1 {[%clk 0:33:18]} Ke6 {[%clk 0:19:48]}
Bg5 {[%clk 0:27:39]} Bd8 {[%clk 0:18:39]} Bxd8 {[%clk 0:27:57]} Rxd8+ {[%clk
0:18:59]} Ke3 {[%clk 0:28:16]} Rd7 {[%clk 0:17:58]} Rd1 {[%clk 0:11:43]} Rxd1
{[%clk 0:17:13]} Rxd1 {[%clk 0:12:11]} h3 {[%clk 0:17:17]} gxh3 {[%clk 0:12:36]}
Rxh3+ {[%clk 0:17:40]} Kf4 {[%clk 0:12:59]} Rh2 {[%clk 0:17:40]} Rd8 {[%clk
0:12:28]} Rxb2 {[%clk 0:15:12]} Re8+ {[%clk 0:11:57]} Kd7 {[%clk 0:15:34]} Rb8
{[%clk 0:12:02]} Ke7 {[%clk 0:13:19]} a4 {[%clk 0:11:41]} a5 {[%clk 0:12:06]}
Ke3 {[%clk 0:08:37]} b5 {[%clk 0:08:31]} Rb7+ {[%clk 0:05:24]} Ke6 {[%clk
0:07:59]} Rc7 {[%clk 0:05:31]} b4 {[%clk 0:05:31]} Rxc6+ {[%clk 0:04:56]} Kxe5
{[%clk 0:05:53]} Rc5+ {[%clk 0:04:16]} Kd6 {[%clk 0:05:49]} Rd5+ {[%clk
0:03:57]} Kc6 {[%clk 0:04:27]} c4 {[%clk 0:02:08]} Kb6 {[%clk 0:00:55]} Rb5+
{[%clk 0:27:55]} Ka6 {[%clk 0:30:12]} Kd4 {[%clk 0:08:43]} Rg2 {[%clk 0:21:35]}
c5 {[%clk 0:07:23]} Rxg4 {[%clk 0:13:03]} c6 {[%clk 0:07:01]} Rg1 {[%clk
0:12:54]} Rc5 {[%clk 0:05:56]} Rd1+ {[%clk 0:12:11]} Ke5 {[%clk 0:06:13]} Rh1
{[%clk 0:10:45]} Kd6 {[%clk 0:06:04]} Rh6+ {[%clk 0:09:00]} Kd7 {[%clk 0:06:13]}
Kb6 {[%clk 0:07:35]} Rb5+ {[%clk 0:06:31]}

[Variant "Standard"]
[Site "Europe Echecs"]

[Event "Open Cappelle-la-Grande"]
[Date "2026.02.24"]
[White "Marie, Maxime"]
[Black "Degraeve, Remy"]
[WhiteElo "2201"]
[BlackElo "2448"]
[Round "5.5.13"]
[Result "0-1"]
[TimeControl "40/5400+30:1800+30"]

c4 {[%clk 1:28:57]} e5 {[%clk 1:30:55]} Nc3 {[%clk 1:28:55]} Nf6 {[%clk
1:31:17]} Nf3 {[%clk 1:28:44]} e4 {[%clk 1:31:41]} Ng5 {[%clk 1:29:02]} c6
{[%clk 1:32:02]} Qa4 {[%clk 1:28:53]} Qe7 {[%clk 1:32:24]} c5 {[%clk 1:24:46]}
e3 {[%clk 1:19:52]} Nce4 {[%clk 1:18:31]} exf2+ {[%clk 1:19:07]} Kxf2 {[%clk
1:17:59]} Qe5 {[%clk 1:17:19]} Nxf6+ {[%clk 0:42:02]} Qxf6+ {[%clk 1:17:38]} Nf3
{[%clk 0:42:24]} Bxc5+ {[%clk 1:18:02]} d4 {[%clk 0:42:42]} Bb6 {[%clk 1:16:48]}
Bg5 {[%clk 0:39:52]} Qg6 {[%clk 1:15:51]} h4 {[%clk 0:39:17]} h6 {[%clk
1:12:34]} h5 {[%clk 0:37:07]} Qe6 {[%clk 1:08:50]} Bf4 {[%clk 0:35:16]} O-O
{[%clk 1:09:11]} g4 {[%clk 0:34:40]} d5 {[%clk 0:58:08]} e3 {[%clk 0:32:12]} c5
{[%clk 0:56:58]} g5 {[%clk 0:30:20]} cxd4 {[%clk 0:53:15]} exd4 {[%clk 0:24:20]}
Nc6 {[%clk 0:50:47]} Bd3 {[%clk 0:23:08]} Bd7 {[%clk 0:47:45]} Rag1 {[%clk
0:19:32]} Nxd4 {[%clk 0:47:25]} Qxd4 {[%clk 0:16:33]} Bxd4+ {[%clk 0:47:50]}
Nxd4 {[%clk 0:16:55]} Qb6 {[%clk 0:48:03]} Be3 {[%clk 0:15:35]} Rfe8 {[%clk
0:48:09]} Rh4 {[%clk 0:08:41]} Rxe3 {[%clk 0:46:57]} Kxe3 {[%clk 0:09:01]} hxg5
{[%clk 0:47:22]}

[Variant "Standard"]
[Site "Europe Echecs"]

[Event "Open Cappelle-la-Grande"]
[Date "2026.02.24"]
[White "Vlandas, Baptiste"]
[Black "Levin, Guy"]
[WhiteElo "2135"]
[BlackElo "2440"]
[Round "5.5.14"]
[Result "0-1"]
[TimeControl "40/5400+30:1800+30"]

d4 {[%clk 1:30:35]} d5 {[%clk 1:29:11]} c4 {[%clk 1:30:40]} dxc4 {[%clk
1:29:30]} Nf3 {[%clk 1:31:02]} Nf6 {[%clk 1:29:55]} Nc3 {[%clk 1:31:26]} a6
{[%clk 1:28:25]} e4 {[%clk 1:31:46]} b5 {[%clk 1:28:52]} e5 {[%clk 1:32:10]} Nd5
{[%clk 1:29:20]} a4 {[%clk 1:32:34]} e6 {[%clk 1:29:33]} axb5 {[%clk 1:32:53]}
Nb6 {[%clk 1:30:01]} bxa6 {[%clk 1:32:56]} Rxa6 {[%clk 1:29:57]} Rxa6 {[%clk
1:31:25]} Bxa6 {[%clk 1:30:25]} Be2 {[%clk 1:14:06]} Be7 {[%clk 1:26:26]} O-O
{[%clk 1:10:33]} O-O {[%clk 1:26:49]} Be3 {[%clk 1:10:15]} Nc6 {[%clk 1:26:33]}
Qb1 {[%clk 0:57:37]} Nb4 {[%clk 1:21:08]} Ne4 {[%clk 0:50:57]} N6d5 {[%clk
1:16:26]} Bd2 {[%clk 0:36:36]} Qa8 {[%clk 1:08:56]} Rc1 {[%clk 0:32:26]} Nd3
{[%clk 1:04:06]} Bxd3 {[%clk 0:30:18]} cxd3 {[%clk 1:04:32]} Nc5 {[%clk
0:28:27]} Bxc5 {[%clk 1:01:32]} Rxc5 {[%clk 0:26:06]} Rb8 {[%clk 1:00:07]} Ra5
{[%clk 0:17:17]} Qc6 {[%clk 0:56:30]} Qa1 {[%clk 0:14:47]} Bb5 {[%clk 0:53:58]}
Ne1 {[%clk 0:12:46]} Nb6 {[%clk 0:45:20]} b3 {[%clk 0:09:52]} Nd5 {[%clk
0:45:15]} Qa3 {[%clk 0:07:20]} Nc3 {[%clk 0:37:09]} Bxc3 {[%clk 0:04:17]} Qxc3
{[%clk 0:37:31]} Qa1 {[%clk 0:04:41]} Qxb3 {[%clk 0:26:12]} Ra3 {[%clk 0:05:07]}
Qxa3 {[%clk 0:25:57]} Qxa3 {[%clk 0:04:41]} d2 {[%clk 0:26:25]} Qa1 {[%clk
0:05:04]} Be2 {[%clk 0:24:14]}

[Variant "Standard"]
[Site "Europe Echecs"]

[Event "Open Cappelle-la-Grande"]
[Date "2026.02.24"]
[White "El Zein, Bassam"]
[Black "Bournel, Antoine"]
[WhiteElo "2083"]
[BlackElo "2434"]
[Round "5.5.15"]
[Result "0-1"]
[TimeControl "40/5400+30:1800+30"]

d4 {[%clk 1:30:58]} d5 {[%clk 1:29:25]} Nf3 {[%clk 1:31:19]} Nf6 {[%clk
1:29:33]} c3 {[%clk 1:31:42]} a5 {[%clk 1:25:20]} Bg5 {[%clk 1:31:11]} h6 {[%clk
1:21:24]} Bh4 {[%clk 1:31:23]} Bf5 {[%clk 1:18:54]} Nbd2 {[%clk 1:30:24]} e6
{[%clk 1:14:35]} e3 {[%clk 1:30:04]} Be7 {[%clk 1:13:21]} Ne5 {[%clk 1:29:21]}
Nbd7 {[%clk 1:10:15]} Nxd7 {[%clk 1:26:48]} Nxd7 {[%clk 1:08:20]} Bg3 {[%clk
1:26:03]} O-O {[%clk 1:07:25]} Be2 {[%clk 1:26:26]} c6 {[%clk 0:53:53]} O-O
{[%clk 1:26:01]} b5 {[%clk 0:54:06]} Re1 {[%clk 1:25:52]} Bg6 {[%clk 0:53:09]}
Nf3 {[%clk 1:22:11]} Qb6 {[%clk 0:50:11]} Bd3 {[%clk 1:22:12]} Bxd3 {[%clk
0:49:01]} Qxd3 {[%clk 1:22:36]} c5 {[%clk 0:48:25]} e4 {[%clk 1:20:25]} dxe4
{[%clk 0:45:02]} Qxe4 {[%clk 1:20:20]} Nf6 {[%clk 0:40:22]} Qe2 {[%clk 1:20:03]}
Rfd8 {[%clk 0:39:50]} dxc5 {[%clk 1:16:56]} Bxc5 {[%clk 0:39:46]} Rad1 {[%clk
1:15:39]} b4 {[%clk 0:34:00]} h3 {[%clk 1:08:12]} bxc3 {[%clk 0:29:50]} bxc3
{[%clk 1:08:36]} Nd5 {[%clk 0:28:47]} Rc1 {[%clk 1:02:28]} Rac8 {[%clk 0:28:18]}
Ne5 {[%clk 0:45:00]} Qa7 {[%clk 0:27:21]} Red1 {[%clk 0:42:37]} f6 {[%clk
0:19:42]} Nf3 {[%clk 0:31:15]} e5 {[%clk 0:19:44]} Qe4 {[%clk 0:28:57]} Qf7
{[%clk 0:16:24]} Rd2 {[%clk 0:26:05]} Nb6 {[%clk 0:14:32]} Rcd1 {[%clk 0:21:43]}
Rxd2 {[%clk 0:14:54]} Rxd2 {[%clk 0:21:18]} Bf8 {[%clk 0:13:53]} Rb2 {[%clk
0:19:37]} Nc4 {[%clk 0:12:00]} Re2 {[%clk 0:17:30]} Nd6 {[%clk 0:11:25]} Qa4
{[%clk 0:17:46]} Qc4 {[%clk 0:11:03]} Qxc4+ {[%clk 0:15:45]} Rxc4 {[%clk
0:11:27]} Rc2 {[%clk 0:15:55]} Ne4 {[%clk 0:09:56]} Re2 {[%clk 0:03:04]} Nxg3
{[%clk 0:08:53]} fxg3 {[%clk 0:03:28]} Rxc3 {[%clk 0:09:11]} Rb2 {[%clk
0:03:54]} a4 {[%clk 0:07:39]} Ne1 {[%clk 0:03:44]} h5 {[%clk 0:05:16]} Nf3
{[%clk 0:02:19]} a3 {[%clk 0:03:00]} Rd2 {[%clk 0:02:32]} Kf7 {[%clk 0:30:00]}
g4 {[%clk 0:32:32]} hxg4 {[%clk 0:30:18]} hxg4 {[%clk 0:32:56]} Ke6 {[%clk
0:29:43]} Kf1 {[%clk 0:33:06]} Bc5 {[%clk 0:29:20]} Nh4 {[%clk 0:30:58]} Rc4
{[%clk 0:29:04]} Nf5 {[%clk 0:30:29]} Rxg4 {[%clk 0:28:52]}

[Variant "Standard"]
[Site "Europe Echecs"]

[Event "Open Cappelle-la-Grande"]
[Date "2026.02.24"]
[White "Toktomushev, Teimur"]
[Black "Siekanska, Maria"]
[WhiteElo "2428"]
[BlackElo "2223"]
[Round "5.5.16"]
[Result "1-0"]
[TimeControl "40/5400+30:1800+30"]

d4 {[%clk 1:27:26]} d5 {[%clk 1:30:55]} c4 {[%clk 1:27:46]} e6 {[%clk 1:31:20]}
Nc3 {[%clk 1:28:05]} c5 {[%clk 1:31:45]} cxd5 {[%clk 1:28:20]} cxd4 {[%clk
1:32:10]} Qa4+ {[%clk 1:28:39]} Bd7 {[%clk 1:32:34]} Qxd4 {[%clk 1:28:57]} exd5
{[%clk 1:32:58]} Qxd5 {[%clk 1:29:14]} Nf6 {[%clk 1:33:23]} Qb3 {[%clk 1:29:25]}
Bc5 {[%clk 1:29:06]} Nf3 {[%clk 1:29:11]} O-O {[%clk 1:29:16]} e3 {[%clk
1:19:13]} Nc6 {[%clk 1:25:53]} Be2 {[%clk 1:17:17]} Be6 {[%clk 1:23:16]} Qa4
{[%clk 1:15:57]} a6 {[%clk 1:17:11]} O-O {[%clk 1:15:41]} b5 {[%clk 1:16:13]}
Qh4 {[%clk 1:04:59]} b4 {[%clk 1:08:25]} Rd1 {[%clk 0:54:54]} Qc7 {[%clk
1:06:59]} Ne4 {[%clk 0:55:04]} Be7 {[%clk 1:06:58]} Bd2 {[%clk 0:31:31]} Bd5
{[%clk 1:03:30]} Qg3 {[%clk 0:25:13]} Qa7 {[%clk 0:48:13]} Nxf6+ {[%clk
0:16:12]} Bxf6 {[%clk 0:48:37]} Bd3 {[%clk 0:15:20]} Rfd8 {[%clk 0:46:58]} e4
{[%clk 0:14:45]} Bb3 {[%clk 0:35:07]} Be3 {[%clk 0:03:35]} Bxd1 {[%clk 0:35:29]}
Bxa7 {[%clk 0:04:02]} Rxd3 {[%clk 0:35:44]} Be3 {[%clk 0:03:44]} Bxb2 {[%clk
0:33:53]} Rb1 {[%clk 0:04:10]} Bc2 {[%clk 0:32:59]} Rf1 {[%clk 0:04:22]} Re8
{[%clk 0:25:02]} h4 {[%clk 0:01:14]} a5 {[%clk 0:20:53]} Ne1 {[%clk 0:00:36]}
Rc3 {[%clk 0:20:41]} Nxc2 {[%clk 0:01:00]} Rxc2 {[%clk 0:21:07]} Rd1 {[%clk
0:00:44]} a4 {[%clk 0:20:43]} Qg5 {[%clk 0:00:32]} b3 {[%clk 0:17:43]} Qb5
{[%clk 0:00:44]} bxa2 {[%clk 0:17:34]} Qxa4 {[%clk 0:01:06]} a1=Q {[%clk
0:13:59]} Rxa1 {[%clk 0:01:31]} Bxa1 {[%clk 0:14:22]} Qxc2 {[%clk 0:01:58]} Rc8
{[%clk 0:13:54]} Qd1 {[%clk 0:02:01]} Bd4 {[%clk 0:13:46]} Bxd4 {[%clk 0:01:57]}
Rd8 {[%clk 0:14:12]} g3 {[%clk 0:01:02]} Nxd4 {[%clk 0:14:29]} Kg2 {[%clk
0:01:27]} Ne6 {[%clk 0:13:30]} Qe2 {[%clk 0:01:35]} g6 {[%clk 0:10:29]} h5
{[%clk 0:01:35]} Kg7 {[%clk 0:09:15]} Qb2+ {[%clk 0:00:52]} Nd4 {[%clk 0:08:48]}
Qc1 {[%clk 0:29:37]} h6 {[%clk 0:36:40]} Qc7 {[%clk 0:28:49]} Ne6 {[%clk
0:36:22]} Qe5+ {[%clk 0:29:14]} Kh7 {[%clk 0:36:43]} Qf6 {[%clk 0:29:37]}

[Variant "Standard"]
[Site "Europe Echecs"]

[Event "Open Cappelle-la-Grande"]
[Date "2026.02.25"]
[White "Can, Emre"]
[Black "Razafindratsima, Timothe"]
[WhiteElo "2541"]
[BlackElo "2504"]
[Round "6.6.1"]
[Result "0-1"]
[TimeControl "40/5400+30:1800+30"]

e4 {[%clk 1:30:55]} e6 {[%clk 1:30:54]} d4 {[%clk 1:30:27]} d5 {[%clk 1:31:16]}
Nd2 {[%clk 1:29:59]} c5 {[%clk 1:31:20]} exd5 {[%clk 1:28:56]} exd5 {[%clk
1:31:43]} Ngf3 {[%clk 1:29:06]} Nc6 {[%clk 1:29:38]} Bb5 {[%clk 1:29:18]} Bd6
{[%clk 1:20:43]} dxc5 {[%clk 1:29:07]} Bxc5 {[%clk 1:20:54]} O-O {[%clk
1:29:25]} Ne7 {[%clk 1:20:00]} Nb3 {[%clk 1:28:46]} Bd6 {[%clk 1:19:33]} Bg5
{[%clk 1:25:13]} O-O {[%clk 1:18:15]} Bh4 {[%clk 1:25:27]} Bg4 {[%clk 1:17:43]}
Re1 {[%clk 1:18:16]} Qc7 {[%clk 1:12:22]} Bg3 {[%clk 1:16:48]} Bxg3 {[%clk
1:05:30]} hxg3 {[%clk 1:17:10]} Rad8 {[%clk 1:02:12]} c3 {[%clk 1:13:36]} Qb6
{[%clk 1:02:03]} Bd3 {[%clk 1:09:31]} Ng6 {[%clk 1:02:28]} Qc2 {[%clk 1:03:06]}
Bxf3 {[%clk 0:49:07]} gxf3 {[%clk 1:03:00]} Nce5 {[%clk 0:48:55]} Be2 {[%clk
0:59:13]} f5 {[%clk 0:39:21]} f4 {[%clk 0:57:13]} Nxf4 {[%clk 0:36:42]} gxf4
{[%clk 0:56:18]} Qg6+ {[%clk 0:36:51]} Kf1 {[%clk 0:56:12]} Qh6 {[%clk 0:37:13]}
Bh5 {[%clk 0:51:10]} Qxf4 {[%clk 0:32:39]} Qe2 {[%clk 0:46:19]} Nc4 {[%clk
0:26:21]} Rad1 {[%clk 0:43:15]} Nd6 {[%clk 0:17:32]} Bf3 {[%clk 0:30:13]} Ne4
{[%clk 0:17:47]} Qe3 {[%clk 0:29:39]} Qh4 {[%clk 0:18:12]} Bxe4 {[%clk 0:25:50]}
fxe4 {[%clk 0:18:38]} Nd4 {[%clk 0:25:28]} Rde8 {[%clk 0:09:25]} Rd2 {[%clk
0:17:38]} Re5 {[%clk 0:08:41]} f4 {[%clk 0:15:23]} Rg5 {[%clk 0:09:08]} Ne2
{[%clk 0:05:39]} Qh1+ {[%clk 0:08:18]} Ng1 {[%clk 0:06:02]} Rxf4+ {[%clk
0:08:23]} Qxf4 {[%clk 0:05:52]} Rxg1+ {[%clk 0:08:48]} Kf2 {[%clk 0:06:11]} Rg2+
{[%clk 0:09:12]}

[Variant "Standard"]
[Site "Europe Echecs"]

[Event "Open Cappelle-la-Grande"]
[Date "2026.02.25"]
[White "Bacrot, Alexandre"]
[Black "Rohith Krishna S"]
[WhiteElo "2457"]
[BlackElo "2484"]
[Round "6.6.2"]
[Result "1/2-1/2"]
[TimeControl "40/5400+30:1800+30"]

g3 {[%clk 1:31:00]} e5 {[%clk 1:29:23]} Bg2 {[%clk 1:31:24]} Nf6 {[%clk
1:29:47]} d3 {[%clk 1:31:35]} Nc6 {[%clk 1:29:53]} Nf3 {[%clk 1:31:28]} d5
{[%clk 1:28:58]} O-O {[%clk 1:31:48]} Be7 {[%clk 1:26:34]} a3 {[%clk 1:31:42]}
a5 {[%clk 1:26:56]} Nc3 {[%clk 1:31:16]} O-O {[%clk 1:26:44]} e4 {[%clk
1:31:14]} dxe4 {[%clk 1:25:28]} dxe4 {[%clk 1:30:30]} Bg4 {[%clk 1:24:54]} Be3
{[%clk 1:30:28]} Qc8 {[%clk 1:22:15]} Qd3 {[%clk 1:27:48]} Rd8 {[%clk 1:13:41]}
Qc4 {[%clk 1:12:20]} Be6 {[%clk 1:07:21]} Qe2 {[%clk 1:10:53]} h6 {[%clk
0:52:53]} Rfd1 {[%clk 1:09:22]} Ng4 {[%clk 0:47:03]} Rxd8+ {[%clk 1:07:13]} Qxd8
{[%clk 0:43:17]} Rd1 {[%clk 1:07:37]} Qf8 {[%clk 0:43:40]} Bd2 {[%clk 1:05:22]}
Bc5 {[%clk 0:42:54]} Be1 {[%clk 1:05:48]} Nd4 {[%clk 0:30:26]} Nxd4 {[%clk
1:06:05]} Bxd4 {[%clk 0:30:35]} Nd5 {[%clk 1:06:19]} Bxd5 {[%clk 0:30:07]} exd5
{[%clk 1:06:25]} Nf6 {[%clk 0:30:31]} c3 {[%clk 1:06:50]} Bb6 {[%clk 0:30:56]}
b4 {[%clk 0:54:26]} axb4 {[%clk 0:28:00]} axb4 {[%clk 0:54:51]} Qd6 {[%clk
0:27:06]} Kh1 {[%clk 0:52:11]} Re8 {[%clk 0:26:07]} h3 {[%clk 0:48:16]} Qd7
{[%clk 0:26:23]} Kh2 {[%clk 0:48:03]} Qf5 {[%clk 0:25:53]} c4 {[%clk 0:40:53]}
Bd4 {[%clk 0:26:11]} Qd3 {[%clk 0:41:18]} Qd7 {[%clk 0:24:28]} f4 {[%clk
0:37:41]} h5 {[%clk 0:24:02]} fxe5 {[%clk 0:26:20]} Bxe5 {[%clk 0:24:27]} Bc3
{[%clk 0:26:47]}

[Variant "Standard"]
[Site "Europe Echecs"]